[Event "FIDE Women's Grand Swiss 2023"]
[Site "Villa Marina, Douglas, Isle of Man, Isle Of Man"]
[Date "2023.10.30"]
[Round "6.13"]
[White "Ushenina, Anna"]
[Black "Gunina, Valentina"]
[Result "1-0"]
[TimeControl "40/90 + 30 + 30s/move"]
[WhiteFideId "14110911"]
[BlackFideId "4167570"]
[WhiteElo "2434"]
[BlackElo "2439"]

1. d4 {[%clk 01:30:48]} {[%emt 00:00:11]} d5 {[%clk 01:30:52]} {[%emt
00:00:08]} 2. c4 {[%clk 01:30:56]} {[%emt 00:00:22]} c6 {[%clk 01:31:15]}
{[%emt 00:00:07]} 3. Nf3 {[%clk 01:30:55]} {[%emt 00:00:31]} Nf6 {[%clk
01:31:37]} {[%emt 00:00:07]} 4. Nc3 {[%clk 01:31:13]} {[%emt 00:00:13]} dxc4
{[%clk 01:31:08]} {[%emt 00:00:59]} 5. a4 {[%clk 01:31:36]} {[%emt 00:00:08]}
Bf5 {[%clk 01:31:12]} {[%emt 00:00:25]} 6. Ne5 {[%clk 01:31:13]} {[%emt
00:00:54]} Nbd7 {[%clk 01:31:34]} {[%emt 00:00:08]} 7. Nxc4 {[%clk 01:31:31]}
{[%emt 00:00:12]} Qc7 {[%clk 01:31:38]} {[%emt 00:00:26]} 8. g3 {[%clk
01:31:06]} {[%emt 00:00:55]} e5 {[%clk 01:31:44]} {[%emt 00:00:24]} 9. dxe5
{[%clk 01:31:30]} {[%emt 00:00:06]} Nxe5 {[%clk 01:32:08]} {[%emt 00:00:05]} 10.
Bf4 {[%clk 01:31:48]} {[%emt 00:00:12]} Nfd7 {[%clk 01:32:16]} {[%emt
00:00:21]} 11. Bg2 {[%clk 01:31:52]} {[%emt 00:00:28]} g5 {[%clk 01:32:14]}
{[%emt 00:00:31]} 12. Ne3 {[%clk 01:31:40]} {[%emt 00:00:42]} gxf4 {[%clk
01:32:31]} {[%emt 00:00:13]} 13. Nxf5 {[%clk 01:32:08]} {[%emt 00:00:03]} O-O-O
{[%clk 01:31:53]} {[%emt 00:01:07]} 14. Qc2 {[%clk 01:31:50]} {[%emt 00:00:49]}
fxg3 {[%clk 01:31:31]} {[%emt 00:00:51]} 15. hxg3 {[%clk 01:32:17]} {[%emt
00:00:03]} a5 {[%clk 01:31:25]} {[%emt 00:00:36]} 16. O-O {[%clk 01:29:15]}
{[%emt 00:03:32]} h5 {[%clk 01:29:39]} {[%emt 00:02:16]} 17. Rfd1 {[%clk
01:13:05]} {[%emt 00:16:40]} Nc5 {[%clk 01:26:54]} {[%emt 00:03:14]} 18. Rxd8+
{[%clk 01:12:51]} {[%emt 00:00:45]} Qxd8 {[%clk 01:27:17]} {[%emt 00:00:06]} 19.
Rd1 {[%clk 01:13:11]} {[%emt 00:00:11]} Qc7 {[%clk 01:26:58]} {[%emt 00:00:47]}
20. Ne4 {[%clk 00:53:06]} {[%emt 00:20:37]} Nxe4 {[%clk 01:26:31]} {[%emt
00:00:56]} 21. Qxe4 {[%clk 00:53:30]} {[%emt 00:00:06]} Bc5 {[%clk 01:26:04]}
{[%emt 00:00:55]} 22. e3 {[%clk 00:52:35]} {[%emt 00:01:27]} Kb8 {[%clk
01:24:42]} {[%emt 00:01:52]} 23. Rc1 {[%clk 00:39:41]} {[%emt 00:13:25]} Bb6
{[%clk 01:24:09]} {[%emt 00:01:01]} 24. Rd1 {[%clk 00:36:32]} {[%emt 00:03:41]}
f6 {[%clk 01:19:52]} {[%emt 00:04:46]} 25. b4 {[%clk 00:31:21]} {[%emt
00:05:42]} Rd8 {[%clk 01:18:32]} {[%emt 00:01:49]} 26. Rb1 {[%clk 00:31:27]}
{[%emt 00:00:26]} Rd2 {[%clk 01:09:40]} {[%emt 00:09:19]} 27. bxa5 {[%clk
00:29:57]} {[%emt 00:02:02]} Bxa5 {[%clk 01:10:05]} {[%emt 00:00:05]} 28. Nd4
{[%clk 00:27:16]} {[%emt 00:03:11]} Bc3 {[%clk 01:00:08]} {[%emt 00:10:24]} 29.
Nb3 {[%clk 00:13:17]} {[%emt 00:14:32]} Rb2 {[%clk 00:54:22]} {[%emt 00:06:15]}
30. Rxb2 {[%emt 00:01:06]} Bxb2 {[%clk 00:54:50]} 31. Qb4 {[%clk 00:12:23]}
{[%emt 00:00:50]} Ka7 {[%clk 00:39:15]} {[%emt 00:16:05]} 32. a5 {[%clk
00:10:54]} {[%emt 00:01:59]} Nd7 {[%clk 00:34:45]} {[%emt 00:04:58]} 33. Nc5
{[%clk 00:05:07]} {[%emt 00:06:19]} Be5 {[%clk 00:34:44]} {[%emt 00:00:30]} 34.
Nxd7 {[%clk 00:04:31]} {[%emt 00:01:07]} Qxd7 {[%clk 00:35:09]} {[%emt
00:00:05]} 35. Qb6+ {[%clk 00:04:23]} {[%emt 00:00:38]} Kb8 {[%clk 00:34:15]}
{[%emt 00:01:22]} 36. a6 {[%clk 00:04:20]} {[%emt 00:00:35]} Qc7 {[%clk
00:29:43]} {[%emt 00:05:01]} 37. Qb3 {[%clk 00:02:58]} {[%emt 00:01:53]} b5
{[%clk 00:28:15]} {[%emt 00:01:58]} 38. Qe6 {[%clk 00:03:01]} {[%emt 00:00:27]}
Ka7 {[%clk 00:28:05]} {[%emt 00:00:39]} 39. Bxc6 {[%clk 00:03:09]} {[%emt
00:00:23]} Kxa6 {[%clk 00:26:45]} {[%emt 00:01:50]} 40. Qd5 {[%clk 00:01:10]}
{[%emt 00:02:28]} Qa5 {[%clk 00:26:28]} {[%emt 00:00:45]} 41. Bd7 {[%clk
00:25:58]} {[%emt 00:05:44]} Qa1+ {[%clk 00:51:44]} {[%emt 00:05:13]} 42. Kg2
{[%clk 00:26:09]} {[%emt 00:00:19]} Qb2 {[%clk 00:52:06]} {[%emt 00:00:06]} 43.
Qf3 {[%clk 00:17:56]} {[%emt 00:08:45]} Kb6 {[%clk 00:51:15]} {[%emt 00:01:20]}
44. Be8 {[%clk 00:17:29]} {[%emt 00:00:58]} Qc2 {[%clk 00:50:24]} {[%emt
00:01:18]} 45. Qd5 {[%clk 00:15:10]} {[%emt 00:02:52]} Qc5 {[%clk 00:48:19]}
{[%emt 00:02:32]} 46. Qe6+ {[%clk 00:14:27]} {[%emt 00:01:16]} Qd6 {[%clk
00:48:07]} {[%emt 00:00:40]} 47. Qb3 {[%clk 00:13:44]} {[%emt 00:01:14]} Qc5
{[%clk 00:47:18]} {[%emt 00:01:18]} 48. Qe6+ {[%clk 00:12:22]} {[%emt
00:01:54]} Qd6 {[%clk 00:47:41]} {[%emt 00:00:07]} 49. Qxd6+ {[%clk 00:12:29]}
{[%emt 00:00:24]} Bxd6 {[%clk 00:48:09]} {[%emt 00:00:01]} 50. Bxh5 {[%clk
00:12:54]} {[%emt 00:00:05]} b4 {[%clk 00:48:33]} {[%emt 00:00:06]} 51. Bf7
{[%clk 00:13:17]} {[%emt 00:00:08]} Kc6 {[%clk 00:48:48]} {[%emt 00:00:14]} 52.
Kf3 {[%clk 00:13:24]} {[%emt 00:00:22]} Be5 {[%clk 00:48:56]} {[%emt 00:00:22]}
53. Ke4 {[%clk 00:13:33]} {[%emt 00:00:22]} Bc3 {[%clk 00:49:12]} {[%emt
00:00:13]} 54. f3 {[%clk 00:12:59]} {[%emt 00:01:04]} Kd6 {[%clk 00:49:23]}
{[%emt 00:00:19]} 55. Bb3 {[%clk 00:12:52]} {[%emt 00:00:38]} Bd2 {[%clk
00:49:30]} {[%emt 00:00:22]} 56. Kf5 {[%clk 00:12:33]} {[%emt 00:00:50]} Ke7
{[%clk 00:45:13]} {[%emt 00:04:47]} 57. e4 {[%clk 00:12:45]} {[%emt 00:00:18]}
Be3 {[%clk 00:44:10]} {[%emt 00:01:32]} 58. f4 {[%clk 00:06:34]} {[%emt
00:06:41]} Bf2 {[%clk 00:42:56]} {[%emt 00:01:43]} 59. g4 {[%clk 00:07:02]}
{[%emt 00:00:03]} Be3 {[%clk 00:43:03]} {[%emt 00:00:22]} 60. g5 {[%clk
00:01:43]} {[%emt 00:05:50]} fxg5 {[%clk 00:43:28]} {[%emt 00:00:05]} 61. Kxg5
{[%clk 00:02:11]} {[%emt 00:00:02]} Kf8 {[%clk 00:17:09]} {[%emt 00:26:50]} 62.
Kf5 {[%clk 00:02:12]} {[%emt 00:00:30]} Kg7 {[%clk 00:16:21]} {[%emt 00:01:18]}
63. Ke5 {[%clk 00:01:40]} {[%emt 00:01:01]} Kg6 {[%clk 00:05:36]} {[%emt
00:11:16]} 64. f5+ {[%clk 00:02:08]} {[%emt 00:00:03]} Kg5 {[%clk 00:05:20]}
{[%emt 00:00:46]} 65. f6 {[%clk 00:02:29]} {[%emt 00:00:09]} Bb6 {[%clk
00:03:36]} {[%emt 00:02:13]} 66. Ke6 {[%clk 00:02:39]} {[%emt 00:00:20]} Kf4
{[%clk 00:03:47]} {[%emt 00:00:20]} 67. e5 {[%clk 00:02:55]} {[%emt 00:00:15]}
Kg5 {[%clk 00:03:22]} {[%emt 00:00:54]} 68. f7 {[%clk 00:02:04]} {[%emt
00:01:21]} Bc5 {[%clk 00:03:43]} {[%emt 00:00:10]} 69. Kd7 {[%clk 00:02:30]}
{[%emt 00:00:04]} 1-0

[Event "FIDE Women's Grand Swiss 2023"]
[Site "Villa Marina, Douglas, Isle of Man, Isle Of Man"]
[Date "2023.10.30"]
[Round "6.14"]
[White "Narva, Mai"]
[Black "Socko, Monika"]
[Result "1-0"]
[TimeControl "40/90 + 30 + 30s/move"]
[WhiteFideId "4500512"]
[BlackFideId "1106619"]
[WhiteElo "2399"]
[BlackElo "2380"]

1. e4 {[%clk 01:30:56]} {[%emt 00:00:02]} c6 {[%clk 01:30:54]} {[%emt
00:00:06]} 2. Nc3 {[%clk 01:31:07]} {[%emt 00:00:18]} d5 {[%clk 01:31:07]}
{[%emt 00:00:18]} 3. Nf3 {[%clk 01:31:21]} {[%emt 00:00:16]} dxe4 {[%clk
01:30:24]} {[%emt 00:01:13]} 4. Nxe4 {[%clk 01:31:43]} {[%emt 00:00:09]} Nf6
{[%clk 01:30:46]} {[%emt 00:00:07]} 5. Qe2 {[%clk 01:31:57]} {[%emt 00:00:16]}
Na6 {[%clk 01:30:33]} {[%emt 00:00:43]} 6. d4 {[%clk 01:25:08]} {[%emt
00:07:20]} Bg4 {[%clk 01:26:17]} {[%emt 00:04:45]} 7. h3 {[%clk 01:11:46]}
{[%emt 00:13:52]} Bxf3 {[%clk 01:23:59]} {[%emt 00:02:49]} 8. Nxf6+ {[%clk
01:10:51]} {[%emt 00:01:24]} gxf6 {[%clk 01:24:24]} {[%emt 00:00:04]} 9. Qxf3
{[%clk 01:11:09]} {[%emt 00:00:13]} Qb6 {[%clk 01:06:51]} {[%emt 00:18:03]} 10.
c3 {[%clk 01:07:40]} {[%emt 00:03:58]} h5 {[%clk 01:06:14]} {[%emt 00:01:06]}
11. a4 {[%clk 01:01:03]} {[%emt 00:07:08]} Bh6 {[%clk 01:03:19]} {[%emt
00:03:25]} 12. a5 {[%clk 00:44:50]} {[%emt 00:16:43]} Qc7 {[%clk 01:03:43]}
{[%emt 00:00:05]} 13. Bxh6 {[%clk 00:44:34]} {[%emt 00:00:47]} Rxh6 {[%clk
01:04:07]} {[%emt 00:00:05]} 14. Bd3 {[%clk 00:42:23]} {[%emt 00:02:42]} Qd6
{[%clk 00:57:09]} {[%emt 00:07:27]} 15. O-O {[%clk 00:38:47]} {[%emt 00:04:07]}
O-O-O {[%clk 00:48:20]} {[%emt 00:09:19]} 16. Qe3 {[%clk 00:33:09]} {[%emt
00:06:08]} Rhh8 {[%clk 00:43:46]} {[%emt 00:05:03]} 17. Bxa6 {[%clk 00:30:58]}
{[%emt 00:02:42]} bxa6 {[%clk 00:44:11]} {[%emt 00:00:04]} 18. Qe2 {[%clk
00:30:44]} {[%emt 00:00:45]} Kb7 {[%clk 00:39:40]} {[%emt 00:05:01]} 19. Ra4
{[%clk 00:28:52]} {[%emt 00:02:23]} Rb8 {[%clk 00:39:51]} {[%emt 00:00:18]} 20.
Rb4+ {[%clk 00:19:57]} {[%emt 00:09:26]} Ka8 {[%clk 00:37:02]} {[%emt
00:03:18]} 21. Rxb8+ {[%clk 00:20:02]} {[%emt 00:00:25]} Rxb8 {[%clk 00:35:13]}
{[%emt 00:02:19]} 22. Qxh5 {[%clk 00:20:03]} {[%emt 00:00:29]} Rxb2 {[%clk
00:35:37]} {[%emt 00:00:06]} 23. Qxf7 {[%clk 00:20:16]} {[%emt 00:00:18]} Rb5
{[%clk 00:35:38]} {[%emt 00:00:28]} 24. Re1 {[%clk 00:18:41]} {[%emt 00:02:06]}
e5 {[%clk 00:33:00]} {[%emt 00:03:08]} 25. dxe5 {[%clk 00:17:01]} {[%emt
00:02:10]} Rxe5 {[%clk 00:29:49]} {[%emt 00:03:41]} 26. Rxe5 {[%clk 00:09:45]}
{[%emt 00:07:46]} Qxe5 {[%clk 00:30:07]} {[%emt 00:00:11]} 27. Qd7 {[%clk
00:09:25]} {[%emt 00:00:51]} Kb8 {[%clk 00:30:31]} {[%emt 00:00:04]} 28. Qd4
{[%clk 00:09:42]} {[%emt 00:00:14]} Qh5 {[%clk 00:23:02]} {[%emt 00:07:59]} 29.
Qd8+ {[%clk 00:08:16]} {[%emt 00:01:56]} Kb7 {[%clk 00:23:30]} {[%emt
00:00:02]} 30. Qd7+ {[%clk 00:08:27]} {[%emt 00:00:20]} Kb8 {[%clk 00:23:58]}
{[%emt 00:00:01]} 31. Qxc6 {[%clk 00:08:40]} {[%emt 00:00:17]} Qxa5 {[%clk
00:23:43]} {[%emt 00:00:45]} 32. Qxf6 {[%clk 00:08:51]} {[%emt 00:00:19]} Qa1+
{[%clk 00:21:30]} {[%emt 00:02:42]} 33. Kh2 {[%clk 00:09:16]} {[%emt 00:00:05]}
a5 {[%clk 00:21:58]} {[%emt 00:00:02]} 34. g4 {[%clk 00:05:44]} {[%emt
00:04:03]} a4 {[%clk 00:18:46]} {[%emt 00:03:42]} 35. g5 {[%clk 00:06:02]}
{[%emt 00:00:11]} Qc1 {[%clk 00:18:56]} {[%emt 00:00:19]} 36. g6 {[%clk
00:03:14]} {[%emt 00:03:19]} Qh6 {[%clk 00:19:21]} {[%emt 00:00:03]} 37. Qe5+
{[%clk 00:02:14]} {[%emt 00:01:31]} Kb7 {[%clk 00:19:46]} {[%emt 00:00:05]} 38.
g7 {[%clk 00:02:25]} {[%emt 00:00:19]} 1-0

[Event "FIDE Women's Grand Swiss 2023"]
[Site "Villa Marina, Douglas, Isle of Man, Isle Of Man"]
[Date "2023.10.30"]
[Round "6.15"]
[White "Cori T., Deysi"]
[Black "Kosteniuk, Alexandra"]
[Result "1-0"]
[TimeControl "40/90 + 30 + 30s/move"]
[WhiteFideId "3801934"]
[BlackFideId "4128125"]
[WhiteElo "2367"]
[BlackElo "2523"]

1. Nf3 {[%clk 01:30:49]} {[%emt 00:00:10]} d5 {[%clk 01:30:44]} {[%emt
00:00:17]} 2. g3 {[%clk 01:30:43]} {[%emt 00:00:36]} Nf6 {[%clk 01:30:56]}
{[%emt 00:00:18]} 3. Bg2 {[%clk 01:30:46]} {[%emt 00:00:26]} Bf5 {[%clk
01:31:03]} {[%emt 00:00:23]} 4. O-O {[%clk 01:28:46]} {[%emt 00:02:30]} e6
{[%clk 01:31:09]} {[%emt 00:00:24]} 5. b3 {[%clk 01:25:20]} {[%emt 00:03:56]}
Nc6 {[%clk 01:30:14]} {[%emt 00:01:25]} 6. Bb2 {[%clk 01:23:28]} {[%emt
00:02:22]} h6 {[%clk 01:29:14]} {[%emt 00:01:29]} 7. d3 {[%clk 01:20:47]}
{[%emt 00:03:11]} a5 {[%clk 01:29:02]} {[%emt 00:00:42]} 8. a3 {[%clk
01:20:22]} {[%emt 00:00:55]} Bc5 {[%clk 01:29:07]} {[%emt 00:00:24]} 9. c4
{[%clk 01:10:00]} {[%emt 00:10:53]} d4 {[%clk 01:27:03]} {[%emt 00:02:35]} 10.
b4 {[%clk 01:05:44]} {[%emt 00:04:45]} axb4 {[%clk 01:24:25]} {[%emt 00:03:07]}
11. axb4 {[%clk 01:06:13]} {[%emt 00:00:02]} Rxa1 {[%clk 01:20:32]} {[%emt
00:04:23]} 12. Bxa1 {[%clk 01:06:41]} {[%emt 00:00:03]} Nxb4 {[%clk 01:17:22]}
{[%emt 00:03:40]} 13. Qa4+ {[%clk 01:04:47]} {[%emt 00:02:23]} Nc6 {[%clk
01:17:07]} {[%emt 00:00:45]} 14. Ne5 {[%clk 00:44:54]} {[%emt 00:20:23]} O-O
{[%clk 01:16:26]} {[%emt 00:01:11]} 15. Nxc6 {[%clk 00:45:02]} {[%emt
00:00:22]} bxc6 {[%clk 01:16:52]} {[%emt 00:00:04]} 16. Nd2 {[%clk 00:39:14]}
{[%emt 00:06:18]} e5 {[%clk 01:15:05]} {[%emt 00:02:17]} 17. Qxc6 {[%clk
00:39:10]} {[%emt 00:00:34]} Qe7 {[%clk 01:06:19]} {[%emt 00:09:16]} 18. Rb1
{[%clk 00:32:45]} {[%emt 00:06:54]} Bb6 {[%clk 01:00:13]} {[%emt 00:06:36]} 19.
Qb5 {[%clk 00:28:51]} {[%emt 00:04:23]} Nd7 {[%clk 00:55:21]} {[%emt 00:05:22]}
20. Be4 {[%clk 00:25:10]} {[%emt 00:04:11]} Bxe4 {[%clk 00:48:47]} {[%emt
00:07:04]} 21. Nxe4 {[%clk 00:25:33]} {[%emt 00:00:07]} Ra8 {[%clk 00:49:04]}
{[%emt 00:00:13]} 22. Bb2 {[%clk 00:22:03]} {[%emt 00:04:00]} Rb8 {[%clk
00:45:08]} {[%emt 00:04:26]} 23. Ba3 {[%clk 00:18:44]} {[%emt 00:03:48]} Qe6
{[%clk 00:41:20]} {[%emt 00:04:18]} 24. Qa6 {[%clk 00:10:45]} {[%emt 00:08:29]}
Qc6 {[%clk 00:37:23]} {[%emt 00:04:27]} 25. Qb5 {[%clk 00:11:14]} {[%emt
00:00:01]} Qxb5 {[%clk 00:33:39]} {[%emt 00:04:15]} 26. Rxb5 {[%clk 00:11:42]}
{[%emt 00:00:01]} Ra8 {[%clk 00:34:04]} {[%emt 00:00:05]} 27. Bb2 {[%clk
00:06:42]} {[%emt 00:05:30]} f5 {[%clk 00:33:00]} {[%emt 00:01:34]} 28. Nd2
{[%clk 00:07:02]} {[%emt 00:00:10]} Ra2 {[%clk 00:32:46]} {[%emt 00:00:44]} 29.
f4 {[%clk 00:03:29]} {[%emt 00:04:02]} exf4 {[%clk 00:12:08]} {[%emt 00:21:08]}
30. gxf4 {[%clk 00:03:52]} {[%emt 00:00:07]} c6 {[%clk 00:12:22]} {[%emt
00:00:16]} 31. Rb3 {[%clk 00:04:00]} {[%emt 00:00:21]} c5 {[%clk 00:12:37]}
{[%emt 00:00:15]} 32. Nf3 {[%clk 00:03:21]} {[%emt 00:01:09]} Bc7 {[%clk
00:05:30]} {[%emt 00:07:38]} 33. Nh4 {[%clk 00:03:49]} {[%emt 00:00:01]} Bxf4
{[%clk 00:04:54]} {[%emt 00:01:07]} 34. Rb7 {[%clk 00:03:41]} {[%emt 00:00:38]}
Nf8 {[%clk 00:01:29]} {[%emt 00:03:55]} 35. Nxf5 {[%clk 00:04:04]} {[%emt
00:00:06]} Ne6 {[%clk 00:01:35]} {[%emt 00:00:25]} 36. h4 {[%clk 00:03:16]}
{[%emt 00:01:18]} Bd2 {[%clk 00:01:39]} {[%emt 00:00:26]} 37. Kf2 {[%clk
00:02:42]} {[%emt 00:01:04]} h5 {[%clk 00:01:03]} {[%emt 00:01:05]} 38. Kf3
{[%clk 00:02:27]} {[%emt 00:00:45]} Kf8 {[%clk 00:01:13]} {[%emt 00:00:20]} 39.
Ke4 {[%clk 00:01:49]} {[%emt 00:01:07]} Nf4 {[%clk 00:00:44]} {[%emt 00:01:00]}
40. Nxg7 {[%clk 00:01:33]} {[%emt 00:00:46]} Nxe2 {[%clk 00:00:38]} {[%emt
00:00:36]} 41. Ne6+ {[%clk 00:01:38]} {[%emt 00:00:25]} Kg8 {[%clk 00:28:39]}
{[%emt 00:02:29]} 42. Kf5 {[%clk 00:23:47]} {[%emt 00:08:21]} Ra6 {[%clk
00:24:35]} {[%emt 00:04:35]} 43. Rg7+ {[%clk 00:20:03]} {[%emt 00:04:14]} Kh8
{[%clk 00:25:00]} {[%emt 00:00:04]} 44. Re7 {[%clk 00:20:27]} {[%emt 00:00:07]}
Kg8 {[%clk 00:15:22]} {[%emt 00:10:09]} 45. Nxc5 {[%clk 00:14:19]} {[%emt
00:06:38]} Ng3+ {[%clk 00:15:41]} {[%emt 00:00:11]} 46. Ke5 {[%clk 00:14:47]}
{[%emt 00:00:02]} Ra5 {[%clk 00:15:09]} {[%emt 00:01:02]} 47. Bxd4 {[%clk
00:15:02]} {[%emt 00:00:15]} Ne2 {[%clk 00:14:21]} {[%emt 00:01:19]} 48. Kd5
{[%clk 00:09:32]} {[%emt 00:06:00]} Nf4+ {[%clk 00:14:38]} {[%emt 00:00:13]} 49.
Ke4 {[%clk 00:07:50]} {[%emt 00:02:12]} Kf8 {[%clk 00:14:29]} {[%emt 00:00:38]}
50. Rh7 {[%clk 00:06:34]} {[%emt 00:01:46]} Ke8 {[%clk 00:13:19]} {[%emt
00:01:40]} 51. Nb3 {[%clk 00:06:32]} {[%emt 00:00:32]} 1-0